[Event "*** SCC Grand Prix: Titled Tuesday Blitz"]
[Site "Chess.com"]
[Date "2020.06.02"]
[Round "10"]
[White "GMSrinath"]
[Black "LionTheLeon_06"]
[Result "1-0"]
[WhiteElo "2796"]
[BlackElo "2686"]
[TimeControl "180+1"]
[EndTime "12:00:35 PDT"]
[Termination "GMSrinath won by resignation"]

1. e4 {[%clk 0:03:00.9]} 1... c5 {[%clk 0:02:59.1]} 2. Nf3 {[%clk 0:03:01.5]}
2... d6 {[%clk 0:02:59.3]} 3. Bb5+ {[%clk 0:03:00.6]} 3... Bd7 {[%clk
0:02:59.5]} 4. c4 {[%clk 0:02:59.5]} 4... Nf6 {[%clk 0:02:58.4]} 5. Nc3 {[%clk
0:02:59.3]} 5... g6 {[%clk 0:02:58.3]} 6. d4 {[%clk 0:02:59.6]} 6... cxd4 {[%clk
0:02:58]} 7. Nxd4 {[%clk 0:03:00.5]} 7... Bg7 {[%clk 0:02:58.4]} 8. O-O {[%clk
0:03:01]} 8... O-O {[%clk 0:02:58.3]} 9. Re1 {[%clk 0:02:56.8]} 9... Nc6 {[%clk
0:02:58.4]} 10. Bxc6 {[%clk 0:02:55.2]} 10... bxc6 {[%clk 0:02:55.6]} 11. c5
{[%clk 0:02:52.9]} 11... dxc5 {[%clk 0:02:51]} 12. Nb3 {[%clk 0:02:53.4]} 12...
c4 {[%clk 0:02:47.1]} 13. Nc5 {[%clk 0:02:53.9]} 13... Bg4 {[%clk 0:02:42]} 14.
Qa4 {[%clk 0:02:44.6]} 14... Nd7 {[%clk 0:02:28.5]} 15. Qxc4 {[%clk 0:02:29.2]}
15... Nxc5 {[%clk 0:02:21.6]} 16. Qxc5 {[%clk 0:02:30.1]} 16... Qd6 {[%clk
0:01:56.6]} 17. Be3 {[%clk 0:02:20.7]} 17... Rab8 {[%clk 0:01:50.8]} 18. Qg5
{[%clk 0:01:29.4]} 18... Be6 {[%clk 0:01:10.1]} 19. Bf4 {[%clk 0:01:14.1]} 19...
Qb4 {[%clk 0:01:01.8]} 20. Bxb8 {[%clk 0:01:14.2]} 20... Rxb8 {[%clk 0:01:01.8]}
21. Qg3 {[%clk 0:01:12.1]} 21... Bd4 {[%clk 0:00:51.4]} 22. h4 {[%clk
0:00:59.8]} 22... c5 {[%clk 0:00:49.7]} 23. Re2 {[%clk 0:00:56.3]} 23... h5
{[%clk 0:00:42.2]} 24. Nd5 {[%clk 0:00:51.2]} 24... Bxd5 {[%clk 0:00:36.3]} 25.
exd5 {[%clk 0:00:52.1]} 25... Rd8 {[%clk 0:00:29.6]} 26. Qf3 {[%clk 0:00:29.2]}
26... Qb7 {[%clk 0:00:23.7]} 27. Rd1 {[%clk 0:00:28.4]} 27... Kf8 {[%clk
0:00:20]} 28. Rde1 {[%clk 0:00:21.2]} 28... Qxd5 {[%clk 0:00:18.2]} 29. Qxd5
{[%clk 0:00:18.5]} 29... Rxd5 {[%clk 0:00:19.1]} 30. Rxe7 {[%clk 0:00:19.1]}
30... Bxb2 {[%clk 0:00:19.4]} 31. Rxa7 {[%clk 0:00:19.5]} 31... Bd4 {[%clk
0:00:17.1]} 32. Rc7 {[%clk 0:00:16.8]} 32... Rd6 {[%clk 0:00:12.7]} 33. Re2
{[%clk 0:00:13.6]} 33... Ra6 {[%clk 0:00:12.4]} 34. g3 {[%clk 0:00:13.7]} 34...
Ra3 {[%clk 0:00:10.9]} 35. Kg2 {[%clk 0:00:13.3]} 35... Ra6 {[%clk 0:00:08.8]}
36. a4 {[%clk 0:00:12.6]} 36... Rxa4 {[%clk 0:00:07]} 37. Ree7 {[%clk
0:00:12.9]} 37... Kg8 {[%clk 0:00:04.7]} 38. Rxf7 {[%clk 0:00:12.4]} 38... Ra2
{[%clk 0:00:05.4]} 39. Rf3 {[%clk 0:00:10]} 39... Rb2 {[%clk 0:00:03.8]} 40. Re7
{[%clk 0:00:09]} 40... Ra2 {[%clk 0:00:03.2]} 41. Rc7 {[%clk 0:00:08.3]} 41...
Rb2 {[%clk 0:00:03.5]} 42. Kf1 {[%clk 0:00:08.8]} 42... Ra2 {[%clk 0:00:03.6]}
43. Re7 {[%clk 0:00:07.8]} 43... Rb2 {[%clk 0:00:03.5]} 44. Re2 {[%clk
0:00:08.1]} 44... Rb1+ {[%clk 0:00:03.5]} 45. Kg2 {[%clk 0:00:08.6]} 45... Kg7
{[%clk 0:00:03.2]} 46. Re7+ {[%clk 0:00:08.2]} 46... Kg8 {[%clk 0:00:02.8]} 47.
Re6 {[%clk 0:00:08.4]} 47... Kg7 {[%clk 0:00:02.7]} 48. Ra3 {[%clk 0:00:08.9]}
48... Rb7 {[%clk 0:00:02.3]} 49. Raa6 {[%clk 0:00:08.1]} 49... Rb2 {[%clk
0:00:02]} 50. Rxg6+ {[%clk 0:00:07.7]} 50... Kf7 {[%clk 0:00:02.5]} 51. Rgd6
{[%clk 0:00:03.3]} 51... Bxf2 {[%clk 0:00:02.6]} 52. Kf3 {[%clk 0:00:03.3]}
52... Bd4 {[%clk 0:00:02.4]} 53. Rd7+ {[%clk 0:00:03.1]} 53... Ke8 {[%clk
0:00:02.7]} 54. Rh7 {[%clk 0:00:03.3]} 54... Rb8 {[%clk 0:00:02.1]} 55. Ke4
{[%clk 0:00:03.2]} 55... Kf8 {[%clk 0:00:02]} 56. Rxh5 {[%clk 0:00:03.1]} 56...
Rc8 {[%clk 0:00:01.1]} 57. Kd5 {[%clk 0:00:02.7]} 57... Rd8+ {[%clk 0:00:01.4]}
58. Kc4 {[%clk 0:00:03.3]} 58... Rc8 {[%clk 0:00:01.7]} 59. Rf5+ {[%clk
0:00:02.9]} 59... Kg8 {[%clk 0:00:01.8]} 60. Rg5+ {[%clk 0:00:03.8]} 60... Kh7
{[%clk 0:00:02.2]} 61. Ra7+ {[%clk 0:00:03.6]} 61... Kh6 {[%clk 0:00:02]} 62.
Ra6+ {[%clk 0:00:04.5]} 62... Kh7 {[%clk 0:00:02]} 63. g4 {[%clk 0:00:05]} 63...
Rb8 {[%clk 0:00:01.9]} 64. Rh5+ {[%clk 0:00:05.5]} 64... Kg7 {[%clk 0:00:01.8]}
65. Rg5+ {[%clk 0:00:06.4]} 65... Kh7 {[%clk 0:00:02.3]} 66. h5 {[%clk 0:00:06]}
66... Rb4+ {[%clk 0:00:02]} 67. Kd5 {[%clk 0:00:06.4]} 67... Rb7 {[%clk
0:00:02.7]} 68. Rgg6 {[%clk 0:00:06.6]} 68... Rd7+ {[%clk 0:00:02.9]} 69. Kc4
{[%clk 0:00:07.1]} 69... Be3 {[%clk 0:00:02.9]} 70. Rgd6 {[%clk 0:00:07]} 70...
Re7 {[%clk 0:00:03.1]} 71. Re6 {[%clk 0:00:06.8]} 71... Rxe6 {[%clk 0:00:03.5]}
72. Rxe6 {[%clk 0:00:07.3]} 72... Bd4 {[%clk 0:00:04.4]} 73. g5 {[%clk
0:00:07.6]} 73... Kg7 {[%clk 0:00:05.3]} 74. Re7+ {[%clk 0:00:07.6]} 74... Kf8
{[%clk 0:00:05.9]} 75. Rb7 {[%clk 0:00:08]} 75... Kg8 {[%clk 0:00:06.4]} 76. g6
{[%clk 0:00:08]} 76... Be3 {[%clk 0:00:05.7]} 77. Kd5 {[%clk 0:00:07.9]} 77...
Bd2 {[%clk 0:00:05.7]} 78. Kxc5 {[%clk 0:00:07.4]} 78... Be3+ {[%clk 0:00:05.9]}
79. Kd5 {[%clk 0:00:07.8]} 79... Bd2 {[%clk 0:00:06.2]} 80. Ke4 {[%clk
0:00:08.2]} 80... Bc1 {[%clk 0:00:05.9]} 81. Kf5 {[%clk 0:00:08.3]} 81... Bd2
{[%clk 0:00:06]} 82. Kf6 {[%clk 0:00:08.1]} 82... Bc3+ {[%clk 0:00:06.4]} 83.
Kf5 {[%clk 0:00:08.5]} 83... Bd2 {[%clk 0:00:06.9]} 84. Rc7 {[%clk 0:00:08.4]}
84... Be3 {[%clk 0:00:06.8]} 85. Rc4 {[%clk 0:00:07.1]} 85... Kh8 {[%clk
0:00:05.5]} 86. Kf6 {[%clk 0:00:06.6]} 86... Bh6 {[%clk 0:00:03.7]} 87. Rc8+
{[%clk 0:00:05.8]} 1-0

[Event "*** SCC Grand Prix: Titled Tuesday Blitz"]
[Site "Chess.com"]
[Date "2020.06.02"]
[Round "10"]
[White "killer311"]
[Black "GelmanAlexander"]
[Result "1/2-1/2"]
[WhiteElo "2411"]
[BlackElo "2545"]
[TimeControl "180+1"]
[EndTime "12:00:45 PDT"]
[Termination "Game drawn - insufficient material"]

1. d4 {[%clk 0:03:00.9]} 1... Nf6 {[%clk 0:02:59.2]} 2. c4 {[%clk 0:03:01.3]}
2... c5 {[%clk 0:02:59]} 3. d5 {[%clk 0:03:01.1]} 3... b5 {[%clk 0:02:58.9]} 4.
cxb5 {[%clk 0:03:02]} 4... a6 {[%clk 0:02:58.7]} 5. bxa6 {[%clk 0:03:02.9]} 5...
e6 {[%clk 0:02:59]} 6. g3 {[%clk 0:03:03.5]} 6... exd5 {[%clk 0:02:43.8]} 7. Bg2
{[%clk 0:03:02.7]} 7... Nxa6 {[%clk 0:02:43.5]} 8. Nc3 {[%clk 0:02:57.1]} 8...
Nc7 {[%clk 0:02:43.5]} 9. Nxd5 {[%clk 0:02:54.5]} 9... Ncxd5 {[%clk 0:02:41.8]}
10. Bxd5 {[%clk 0:02:55.4]} 10... Nxd5 {[%clk 0:02:41.7]} 11. Qxd5 {[%clk
0:02:56]} 11... Ba6 {[%clk 0:02:24.2]} 12. Nf3 {[%clk 0:02:51.8]} 12... Be7
{[%clk 0:02:24.2]} 13. O-O {[%clk 0:02:37.5]} 13... O-O {[%clk 0:02:04.2]} 14.
Re1 {[%clk 0:02:33.4]} 14... Ra7 {[%clk 0:01:27.5]} 15. Bf4 {[%clk 0:02:29.2]}
15... Bb7 {[%clk 0:01:24.3]} 16. Qd2 {[%clk 0:02:15.8]} 16... Qa8 {[%clk
0:01:22.1]} 17. Ne5 {[%clk 0:02:09.4]} 17... d6 {[%clk 0:01:19.5]} 18. Nd7
{[%clk 0:01:52.3]} 18... Re8 {[%clk 0:01:03.7]} 19. Nb6 {[%clk 0:01:49.9]} 19...
Qb8 {[%clk 0:00:58.1]} 20. Nc4 {[%clk 0:01:46]} 20... Rd8 {[%clk 0:00:55.1]} 21.
e4 {[%clk 0:01:37.9]} 21... Qc8 {[%clk 0:00:51.7]} 22. b3 {[%clk 0:01:33.7]}
22... Qc6 {[%clk 0:00:47.2]} 23. Qc2 {[%clk 0:01:27.5]} 23... d5 {[%clk
0:00:35.9]} 24. Ne5 {[%clk 0:01:26.9]} 24... Qe6 {[%clk 0:00:28.2]} 25. exd5
{[%clk 0:01:26.4]} 25... Qxd5 {[%clk 0:00:27.9]} 26. f3 {[%clk 0:01:25.9]} 26...
Raa8 {[%clk 0:00:18.6]} 27. Rad1 {[%clk 0:01:25.5]} 27... Qe6 {[%clk 0:00:18.9]}
28. Kg2 {[%clk 0:01:13.9]} 28... Bf8 {[%clk 0:00:17.3]} 29. Nd7 {[%clk
0:01:07.4]} 29... Qc6 {[%clk 0:00:15.9]} 30. Ne5 {[%clk 0:01:07.2]} 30... Qa6
{[%clk 0:00:15.6]} 31. Rxd8 {[%clk 0:01:02.6]} 31... Rxd8 {[%clk 0:00:15.2]} 32.
Qf5 {[%clk 0:01:02.6]} 32... Qxa2+ {[%clk 0:00:10.1]} 33. Kg1 {[%clk 0:00:59.4]}
33... Qxb3 {[%clk 0:00:11]} 34. Bg5 {[%clk 0:00:56.6]} 34... Re8 {[%clk
0:00:10.1]} 35. Rf1 {[%clk 0:00:50.6]} 35... f6 {[%clk 0:00:09.8]} 36. Bxf6
{[%clk 0:00:45.6]} 36... gxf6 {[%clk 0:00:09.2]} 37. Qg4+ {[%clk 0:00:44.8]}
37... Bg7 {[%clk 0:00:08.4]} 38. Nd7 {[%clk 0:00:44.3]} 38... Qe6 {[%clk
0:00:07.2]} 39. Qxe6+ {[%clk 0:00:41.5]} 39... Rxe6 {[%clk 0:00:07.4]} 40. Nxc5
{[%clk 0:00:42.4]} 40... Rb6 {[%clk 0:00:07.5]} 41. Nxb7 {[%clk 0:00:42.2]}
41... Rxb7 {[%clk 0:00:08.4]} 42. f4 {[%clk 0:00:41.9]} 42... Kf7 {[%clk
0:00:09]} 43. Kg2 {[%clk 0:00:42.2]} 43... f5 {[%clk 0:00:08.8]} 44. Kh3 {[%clk
0:00:43.1]} 44... Rb6 {[%clk 0:00:08.7]} 45. Re1 {[%clk 0:00:43.4]} 45... Rh6+
{[%clk 0:00:09.2]} 46. Kg2 {[%clk 0:00:42.7]} 46... Re6 {[%clk 0:00:10.1]} 47.
Rd1 {[%clk 0:00:42.7]} 47... Kg6 {[%clk 0:00:09.8]} 48. Rd5 {[%clk 0:00:41.9]}
48... h5 {[%clk 0:00:10.1]} 49. Rc5 {[%clk 0:00:41.7]} 49... Bf6 {[%clk
0:00:10.7]} 50. Rb5 {[%clk 0:00:42.6]} 50... Rd6 {[%clk 0:00:11]} 51. Ra5 {[%clk
0:00:41.5]} 51... Rd2+ {[%clk 0:00:11.4]} 52. Kh3 {[%clk 0:00:41.7]} 52... Rd3
{[%clk 0:00:12.3]} 53. Kg2 {[%clk 0:00:40.6]} 53... Rc3 {[%clk 0:00:12.9]} 54.
Rb5 {[%clk 0:00:39.8]} 54... Rc2+ {[%clk 0:00:13.4]} 55. Kh3 {[%clk 0:00:39.2]}
55... Rc3 {[%clk 0:00:14.3]} 56. Rb6 {[%clk 0:00:39]} 56... h4 {[%clk
0:00:14.2]} 57. Kg2 {[%clk 0:00:37.5]} 57... Rc2+ {[%clk 0:00:14.5]} 58. Kh3
{[%clk 0:00:37.4]} 58... Rc3 {[%clk 0:00:15.4]} 59. Kg2 {[%clk 0:00:37.4]} 59...
hxg3 {[%clk 0:00:14.3]} 60. hxg3 {[%clk 0:00:35.7]} 60... Rc2+ {[%clk
0:00:15.2]} 61. Kh3 {[%clk 0:00:36]} 61... Rc3 {[%clk 0:00:16.1]} 62. Ra6 {[%clk
0:00:34.5]} 62... Kf7 {[%clk 0:00:15.2]} 63. Ra7+ {[%clk 0:00:34.4]} 63... Ke6
{[%clk 0:00:15.3]} 64. Ra6+ {[%clk 0:00:34.4]} 64... Kf7 {[%clk 0:00:16.2]} 65.
Ra7+ {[%clk 0:00:34.7]} 65... Kf8 {[%clk 0:00:15.7]} 66. Ra8+ {[%clk 0:00:34.2]}
66... Kg7 {[%clk 0:00:16.2]} 67. Ra7+ {[%clk 0:00:34.4]} 67... Kg6 {[%clk
0:00:16.5]} 68. Ra6 {[%clk 0:00:34.6]} 68... Re3 {[%clk 0:00:16.4]} 69. Rb6
{[%clk 0:00:34.4]} 69... Re7 {[%clk 0:00:16.9]} 70. Ra6 {[%clk 0:00:34.4]} 70...
Rh7+ {[%clk 0:00:17.5]} 71. Kg2 {[%clk 0:00:34]} 71... Rb7 {[%clk 0:00:18.4]}
72. Kh3 {[%clk 0:00:34.2]} 72... Rf7 {[%clk 0:00:18.1]} 73. Kg2 {[%clk
0:00:34.2]} 73... Rf8 {[%clk 0:00:18]} 74. Kh3 {[%clk 0:00:34.2]} 74... Kg7
{[%clk 0:00:17.4]} 75. Ra7+ {[%clk 0:00:32.3]} 75... Rf7 {[%clk 0:00:17.6]} 76.
Ra6 {[%clk 0:00:32.6]} 76... Bd4 {[%clk 0:00:17.1]} 77. Ra5 {[%clk 0:00:32]}
77... Kg6 {[%clk 0:00:16.9]} 78. Kg2 {[%clk 0:00:31.2]} 78... Ra7 {[%clk
0:00:15.7]} 79. Rd5 {[%clk 0:00:30.6]} 79... Ra2+ {[%clk 0:00:15.5]} 80. Kh3
{[%clk 0:00:30.9]} 80... Bg1 {[%clk 0:00:16]} 81. Rd6+ {[%clk 0:00:30]} 81...
Kg7 {[%clk 0:00:15.7]} 82. g4 {[%clk 0:00:30.2]} 82... Ra3+ {[%clk 0:00:12.9]}
83. Kh4 {[%clk 0:00:29.8]} 83... Bf2+ {[%clk 0:00:11.3]} 84. Kg5 {[%clk
0:00:29.8]} 84... fxg4 {[%clk 0:00:11.9]} 85. Rd7+ {[%clk 0:00:28.6]} 85... Kf8
{[%clk 0:00:10.9]} 86. Kxg4 {[%clk 0:00:29.5]} 86... Ra4 {[%clk 0:00:11.2]} 87.
Kg5 {[%clk 0:00:28.6]} 87... Be3 {[%clk 0:00:11]} 88. Rd8+ {[%clk 0:00:28.3]}
88... Ke7 {[%clk 0:00:10.9]} 89. Rc8 {[%clk 0:00:28.3]} 89... Bxf4+ {[%clk
0:00:10.7]} 90. Kg6 {[%clk 0:00:28.7]} 90... Bd6 {[%clk 0:00:10.6]} 91. Rc2
{[%clk 0:00:27.2]} 91... Re4 {[%clk 0:00:10.4]} 92. Rd2 {[%clk 0:00:27]} 92...
Ke6 {[%clk 0:00:10.6]} 93. Rd1 {[%clk 0:00:26.3]} 93... Rg4+ {[%clk 0:00:10.6]}
94. Kh5 {[%clk 0:00:26.6]} 94... Rg3 {[%clk 0:00:11.1]} 95. Kh4 {[%clk
0:00:25.8]} 95... Rg8 {[%clk 0:00:10.2]} 96. Kh3 {[%clk 0:00:24.8]} 96... Kf5
{[%clk 0:00:10.4]} 97. Rxd6 {[%clk 0:00:24.3]} 97... Rg6 {[%clk 0:00:09.2]} 98.
Rxg6 {[%clk 0:00:23.9]} 98... Kxg6 {[%clk 0:00:09.1]} 1/2-1/2

[Event "*** SCC Grand Prix: Titled Tuesday Blitz"]
[Site "Chess.com"]
[Date "2020.06.02"]
[Round "10"]
[White "Vesper2018"]
[Black "Shubinkirill2003"]
[Result "0-1"]
[WhiteElo "2401"]
[BlackElo "2724"]
[TimeControl "180+1"]
[EndTime "12:00:48 PDT"]
[Termination "Shubinkirill2003 won by resignation"]

1. e4 {[%clk 0:03:00.1]} 1... e6 {[%clk 0:02:59.6]} 2. d4 {[%clk 0:02:59.8]}
2... d5 {[%clk 0:02:58.9]} 3. e5 {[%clk 0:03:00.2]} 3... c5 {[%clk 0:02:58.2]}
4. c3 {[%clk 0:03:00.5]} 4... Qa5 {[%clk 0:02:58]} 5. a3 {[%clk 0:02:58.6]} 5...
Nc6 {[%clk 0:02:57.2]} 6. Nf3 {[%clk 0:02:52.8]} 6... Bd7 {[%clk 0:02:56.6]} 7.
dxc5 {[%clk 0:02:51.6]} 7... Qc7 {[%clk 0:02:55.5]} 8. Bf4 {[%clk 0:02:47.4]}
8... Bxc5 {[%clk 0:02:54.7]} 9. Bd3 {[%clk 0:02:44.5]} 9... h6 {[%clk
0:02:41.9]} 10. h4 {[%clk 0:02:37.2]} 10... a5 {[%clk 0:02:36.2]} 11. a4 {[%clk
0:02:31.3]} 11... Nge7 {[%clk 0:02:29.4]} 12. Na3 {[%clk 0:02:26.7]} 12... Bxa3
{[%clk 0:02:18.2]} 13. Rxa3 {[%clk 0:02:26.5]} 13... O-O-O {[%clk 0:02:16.8]}
14. Qd2 {[%clk 0:02:09.3]} 14... g5 {[%clk 0:02:07.7]} 15. hxg5 {[%clk 0:01:42]}
15... hxg5 {[%clk 0:02:08.6]} 16. Rxh8 {[%clk 0:01:42.1]} 16... Rxh8 {[%clk
0:02:07.9]} 17. Bxg5 {[%clk 0:01:42.1]} 17... Rh1+ {[%clk 0:02:06.4]} 18. Ke2
{[%clk 0:01:41.6]} 18... Ng6 {[%clk 0:01:53.2]} 19. Bxg6 {[%clk 0:01:34.9]}
19... fxg6 {[%clk 0:01:54.1]} 20. Qe3 {[%clk 0:01:29.3]} 20... Rb1 {[%clk
0:01:27.6]} 21. Rb3 {[%clk 0:01:25.5]} 21... Nb8 {[%clk 0:01:06.9]} 22. Nd2
{[%clk 0:01:14.9]} 22... Ra1 {[%clk 0:01:01.2]} 23. Qf4 {[%clk 0:01:09.1]} 23...
Be8 {[%clk 0:00:43.6]} 24. Qf6 {[%clk 0:00:49.5]} 24... Qd7 {[%clk 0:00:40.7]}
25. Nf3 {[%clk 0:00:41]} 25... Nc6 {[%clk 0:00:36.4]} 26. Qf4 {[%clk 0:00:35.1]}
26... Qf7 {[%clk 0:00:28.4]} 27. Bf6 {[%clk 0:00:22.2]} 27... Qh7 {[%clk
0:00:27.9]} 28. Qh4 {[%clk 0:00:18.5]} 28... Qxh4 {[%clk 0:00:26.1]} 29. Nxh4
{[%clk 0:00:17.9]} 29... Rxa4 {[%clk 0:00:26.4]} 30. Nf3 {[%clk 0:00:18.3]}
30... Ra2 {[%clk 0:00:21.8]} 31. Nd2 {[%clk 0:00:15]} 31... a4 {[%clk
0:00:21.4]} 32. Ra3 {[%clk 0:00:14.9]} 32... Rxb2 {[%clk 0:00:19.6]} 33. Kd3
{[%clk 0:00:14.7]} 33... b5 {[%clk 0:00:18.7]} 34. f4 {[%clk 0:00:13.2]} 34...
Kb7 {[%clk 0:00:17.9]} 35. g4 {[%clk 0:00:12.9]} 35... Bd7 {[%clk 0:00:18.1]}
36. Bg7 {[%clk 0:00:11.2]} 36... b4 {[%clk 0:00:18.1]} 37. Rxa4 {[%clk
0:00:09.6]} 37... Nxe5+ {[%clk 0:00:17.8]} 38. Bxe5 {[%clk 0:00:08.7]} 38...
Bxa4 {[%clk 0:00:18.2]} 39. cxb4 {[%clk 0:00:09.2]} 39... Rxb4 {[%clk
0:00:17.6]} 40. Nf3 {[%clk 0:00:09.2]} 40... Rb3+ {[%clk 0:00:16.5]} 41. Ke2
{[%clk 0:00:09.3]} 41... Bb5+ {[%clk 0:00:16.1]} 42. Kf2 {[%clk 0:00:09.6]}
42... Bd7 {[%clk 0:00:15.6]} 43. Nd4 {[%clk 0:00:09.4]} 43... Rd3 {[%clk
0:00:15.5]} 44. Ke2 {[%clk 0:00:09]} 44... Rh3 {[%clk 0:00:15.6]} 45. g5 {[%clk
0:00:09]} 45... Kb6 {[%clk 0:00:15.2]} 46. Nf3 {[%clk 0:00:08.1]} 46... Kc5
{[%clk 0:00:13.7]} 47. Kf2 {[%clk 0:00:07.8]} 47... Kc4 {[%clk 0:00:13.5]} 48.
Bf6 {[%clk 0:00:07.9]} 48... Be8 {[%clk 0:00:10.7]} 49. Ne5+ {[%clk 0:00:07.9]}
49... Kc5 {[%clk 0:00:10.7]} 50. Nf3 {[%clk 0:00:07.8]} 50... Kd6 {[%clk
0:00:08.4]} 51. Ne5 {[%clk 0:00:07.4]} 51... Rh7 {[%clk 0:00:07.5]} 52. Nf3
{[%clk 0:00:07.3]} 52... Ra7 {[%clk 0:00:07.5]} 53. Be5+ {[%clk 0:00:07.5]}
53... Ke7 {[%clk 0:00:07.3]} 54. Nd4 {[%clk 0:00:07.4]} 54... Ra2+ {[%clk
0:00:06.1]} 55. Ke3 {[%clk 0:00:07.3]} 55... Bd7 {[%clk 0:00:06.2]} 56. Nf3
{[%clk 0:00:06.9]} 56... Kd8 {[%clk 0:00:05.5]} 57. Nd4 {[%clk 0:00:06.8]} 57...
Kc8 {[%clk 0:00:04.3]} 58. Nf3 {[%clk 0:00:06.8]} 58... Kb7 {[%clk 0:00:04.1]}
59. Nd4 {[%clk 0:00:06.8]} 59... Ka6 {[%clk 0:00:03.6]} 60. Bd6 {[%clk
0:00:06.4]} 60... Ka5 {[%clk 0:00:02.7]} 61. Bc5 {[%clk 0:00:06.3]} 61... Ka6
{[%clk 0:00:02.6]} 62. Bd6 {[%clk 0:00:06.4]} 62... Kb7 {[%clk 0:00:02.6]} 63.
Bc5 {[%clk 0:00:06.4]} 63... Ra5 {[%clk 0:00:02.8]} 64. Bd6 {[%clk 0:00:06.3]}
64... Ra6 {[%clk 0:00:03.3]} 65. Be5 {[%clk 0:00:06.5]} 65... Ra3+ {[%clk
0:00:03.7]} 66. Kf2 {[%clk 0:00:06]} 66... Rd3 {[%clk 0:00:03.5]} 67. Ke2 {[%clk
0:00:04.7]} 67... Ra3 {[%clk 0:00:02.4]} 68. Kf2 {[%clk 0:00:04.9]} 68... Rh3
{[%clk 0:00:02.5]} 69. Bd6 {[%clk 0:00:05]} 69... Rd3 {[%clk 0:00:02.7]} 70. Be5
{[%clk 0:00:05.3]} 70... Kb6 {[%clk 0:00:02.4]} 71. Ke2 {[%clk 0:00:05.3]} 71...
Rh3 {[%clk 0:00:02.6]} 72. Bd6 {[%clk 0:00:05.5]} 72... Rc3 {[%clk 0:00:01.4]}
73. Be5 {[%clk 0:00:05.1]} 73... Rc4 {[%clk 0:00:01.9]} 74. Ke3 {[%clk
0:00:04.8]} 74... Kc5 {[%clk 0:00:02.1]} 75. Nb3+ {[%clk 0:00:04.7]} 75... Kb5
{[%clk 0:00:02.3]} 76. Nd4+ {[%clk 0:00:04.8]} 76... Kb6 {[%clk 0:00:03.2]} 77.
Kd3 {[%clk 0:00:04.5]} 77... Ra4 {[%clk 0:00:03]} 78. Ke3 {[%clk 0:00:04.2]}
78... Kc5 {[%clk 0:00:02.5]} 79. Nb3+ {[%clk 0:00:03.8]} 79... Kc4 {[%clk
0:00:02.8]} 80. Nd2+ {[%clk 0:00:03.9]} 80... Kb4 {[%clk 0:00:02.6]} 81. Nf3
{[%clk 0:00:03.7]} 81... Ra3+ {[%clk 0:00:02.5]} 82. Kf2 {[%clk 0:00:04.1]}
82... Kc4 {[%clk 0:00:02.8]} 83. Nd4 {[%clk 0:00:03]} 83... Rd3 {[%clk
0:00:02.4]} 84. Ne2 {[%clk 0:00:03.3]} 84... Rd2 {[%clk 0:00:01.7]} 85. Ke3
{[%clk 0:00:03.4]} 85... Ra2 {[%clk 0:00:02.6]} 86. Nd4 {[%clk 0:00:03.3]} 86...
Ra3+ {[%clk 0:00:03]} 87. Kf2 {[%clk 0:00:03.7]} 87... Rd3 {[%clk 0:00:03.9]}
88. Ne2 {[%clk 0:00:04.1]} 88... Bb5 {[%clk 0:00:04]} 89. Ng3 {[%clk 0:00:02.8]}
89... d4 {[%clk 0:00:04]} 90. Ke2 {[%clk 0:00:02.5]} 90... Rxg3 {[%clk
0:00:03.5]} 91. Kf2 {[%clk 0:00:02.4]} 91... Re3 {[%clk 0:00:03.7]} 0-1